fUST/lending_fUST_20240418
["ID","MTS","AMOUNT","RATE_DAILY","PERIOD"]
[322852965,1713418247628,-151.0,0.00031,2]
[322852966,1713418247638,-151.0,0.00031,2]
[322852967,1713418247648,-151.0,0.00031,2]
[322852968,1713418247657,-151.0,0.00031,2]
[322852969,1713418247668,-151.0,0.00031,2]
[322852970,1713418247677,-151.0,0.00031,2]
[322852971,1713418247687,-239.378464,0.00031,2]
[322852972,1713418247696,-203.2761986,0.00031,2]
[322852973,1713418247705,-1000.0,0.00031029,2]
[322852974,1713418247716,-2000.0,0.00031033,2]
[322852975,1713418247725,-257.63088909,0.00031046,2]
[322852976,1713418247735,-166.666666,0.00031097,2]
[322852977,1713418247747,-964.0,0.000311,3]
[322852978,1713418247756,-1000.0,0.00031123,2]
[322852979,1713418247766,-1000.0,0.00031123,2]
[322852980,1713418247775,-1000.0,0.00031124,2]
[322852981,1713418247784,-1000.0,0.00031131,2]
[322852982,1713418247794,-1000.0,0.00031131,2]
[322852983,1713418247803,-1000.0,0.00031133,2]
[322852984,1713418247812,-1000.0,0.00031134,2]
[322852985,1713418247822,-1000.0,0.00031138,2]
[322852986,1713418247832,-310.75359436,0.00031144,2]
[322852987,1713418247841,-796.88847405,0.00031146,2]
[322852988,1713418247850,-1000.0,0.00031148,2]
[322852989,1713418247860,-1000.0,0.00031159,2]
[322852990,1713418247869,-300.0,0.00031172,2]
[322852991,1713418247879,-8197.73699942,0.00031197,4]
[322852992,1713418247888,-154.99603486,0.00031197,4]
[322852993,1713418247898,-203.2849777,0.00031197,4]
[322852994,1713418247907,-441.85149502,0.00031197,4]
[322852995,1713418247917,-176.78975825,0.00031197,4]
[322852996,1713418247927,-250.08795106,0.00031197,4]
[322852997,1713418247936,-499.70124931,0.00031197,4]
[322852998,1713418247946,-304.57624775,0.00031197,4]
[322852999,1713418247956,-221.76571967,0.00031198,2]
[322853000,1713418247967,-51207.0,0.00031199,30]
[322853001,1713418247976,-1000.0,0.00031246,2]
[322853002,1713418247985,-1000.0,0.00031257,2]
[322853003,1713418247995,-1000.0,0.00031275,2]
[322853004,1713418248004,-1000.0,0.00031282,2]
[322853005,1713418248013,-1000.0,0.00031287,2]
[322853006,1713418248024,-1000.0,0.00031295,2]
[322853007,1713418248034,-153.0,0.00031315,2]
[322853008,1713418248043,-153.0,0.00031315,2]
[322853009,1713418248052,-153.0,0.00031315,2]
[322853010,1713418248062,-153.0,0.00031315,2]
[322853011,1713418248071,-153.0,0.00031315,2]
[322853012,1713418248080,-153.0,0.00031315,2]
[322853013,1713418248089,-483.60808761,0.00031339,2]
[322853014,1713418248099,-155.06222629,0.00031342,4]
[322853015,1713418248108,-209.65919241,0.00031342,2]
[322853016,1713418248117,-500.0,0.00031342,2]
[322853017,1713418248127,-447.2193871,0.00031342,2]
[322853018,1713418248137,-477.01999733,0.00031342,2]
[322853019,1713418248146,-312.67446116,0.00031342,2]
[322853020,1713418248155,-54099.36478155,0.00031343,4]
[322853035,1713419130144,-291.193491,0.00027397,2]
[322853036,1713419130164,-628.81103564,0.00030999,4]
[322853037,1713419130183,-865.92450254,0.00031,2]
[322853040,1713419228102,-441.85149502,0.000299,2]
[322853041,1713419238103,-156.3507885,0.000299,2]
[322853360,1713419440668,-205.8725987,0.00028899,2]
[322853361,1713419440677,-150.0,0.000289,2]
[322853362,1713419440686,-628.64402591,0.000299,2]
[322854051,1713420349144,-468.01507081,0.00026989,2]
[322854052,1713420349164,-158.89146937,0.00026989,2]
[322854053,1713420349185,-688.76379086,0.0002699,2]
[322854054,1713420349204,-521.11578243,0.00026991,2]
[322854055,1713420349224,-305.0,0.00027,2]
[322854056,1713420349243,-10.41941627,0.00027671,2]
[322854058,1713420444092,-442.201051,0.00027397,2]
[322854059,1713420444113,-48.40725773,0.00027671,2]
[322854075,1713420632739,-626.43746232,0.00024628,2]
[322854076,1713420632749,-458.2408098,0.0002586,2]
[322854318,1713420646836,-500.84978413,0.00025297,2]
[322854319,1713420646846,-162.08106332,0.0002586,2]
[322854320,1713420646856,-620.01609366,0.00027153,2]
[322854321,1713420646865,-246.173326,0.00027671,2]
[322854322,1713420646875,-305.0,0.00028767,2]
[322854323,1713420646885,-5069.1056882,0.00029896,2]
[322854324,1713420646895,-836.74482459,0.000299,2]
[322854325,1713420646904,-306.0,0.00030205,2]
[322854326,1713420646917,-500.84978413,0.00030297,2]
[322854327,1713420646926,-166.666666,0.00030309,2]
[322854328,1713420646936,-208.77066265,0.00030577,2]
[322854342,1713421555153,-219.2903099,0.00027397,2]
[322854343,1713421555173,-193.29150576,0.000277,3]
[322854347,1713421643102,-800.46893045,0.00027699,2]
[322854348,1713421643124,-141.95360003,0.000277,3]
[322854349,1713421643144,-300.0,0.00027799,2]
[322854350,1713421643166,-1820.14836434,0.000278,2]
[322854378,1713421831926,-300.0,0.00027799,2]
[322854379,1713421831936,-83.7998292,0.000278,2]
[322854420,1713421837842,-10000.0,0.000278,2]
[322854618,1713421840120,-216.94992804,0.000257,2]
[322854619,1713421840132,-113.05007196,0.000278,2]
[322864631,1713422732127,-468.01507081,0.00025641,2]
[322864632,1713422732148,-154.78330338,0.00025642,2]
[322864633,1713422732168,-277.67829471,0.00025642,2]
[322864634,1713422732188,-154.78330338,0.00025642,2]
[322864635,1713422732210,-593.33433555,0.00025643,2]
[322864636,1713422833097,-156.3507885,0.00023536,2]
[322864637,1713422838192,-241.27133125,0.00023535,2]
[322864638,1713422838212,-200.58016377,0.00023536,2]
[322864652,1713422952103,-1488.93939459,0.00023527,2]
[322864653,1713422952123,-938.10485442,0.00023528,2]
[322864654,1713422952141,-361.68523886,0.00023528,2]
[322864655,1713422952160,-474.3197252,0.00023529,2]
[322864656,1713422952178,-965.62361684,0.0002353,2]
[322864657,1713422952196,-157.61140581,0.00023531,2]
[322864658,1713422952215,-150.0,0.00023543,2]
[322864659,1713422952233,-277.67829471,0.00025692,2]
[322864660,1713422952252,-154.84515485,0.00025693,2]
[322864661,1713422952271,-154.84515485,0.00025693,2]
[322864662,1713422952291,-2097.46177944,0.00025694,2]
[322864663,1713422952310,-468.01507081,0.00025695,2]
[322864664,1713422952330,-9.82310358,0.00025698,2]
[322864665,1713422960091,-157.61140581,0.00023526,2]
[322864666,1713422960113,-290.17689642,0.00025698,2]
[322864667,1713422960134,-1089.46926871,0.00025699,2]
[322864668,1713422960155,-217.556017,0.000257,2]
[322864669,1713422960176,-217.556017,0.000257,2]
[322864670,1713422960198,-151.0,0.000257,2]
[322864671,1713422960218,-260.11431,0.000257,2]
[322864672,1713422960237,-420.08700777,0.00025837,2]
[322864749,1713423032073,-241.27133125,0.00025836,2]
[322864750,1713423032082,-79.91299223,0.00025837,2]
[322864751,1713423032091,-1488.93939459,0.00026464,2]
[322864752,1713423032103,-220.674889,0.00026465,2]
[322864753,1713423032112,-217.556017,0.00026465,2]
[322864754,1713423032121,-151.0,0.00026465,2]
[322864755,1713423032130,-151.0,0.00027,2]
[322864756,1713423032139,-295.122307,0.00027397,2]
[322864757,1713423032148,-166.666666,0.00027397,2]
[322864758,1713423032157,-291.1934921,0.00027397,2]
[322864759,1713423032166,-300.0,0.00027677,2]
[322864760,1713423032174,-217.556017,0.00027678,2]
[322864761,1713423032183,-151.0,0.00027678,2]
[322864762,1713423032192,-637.51077924,0.00027678,2]
[322864763,1713423032201,-293.33946761,0.00027687,3]
[322864764,1713423032210,-234.13570318,0.00027766,2]
[322864765,1713423032219,-1019.292274,0.00027766,2]
[322864766,1713423032229,-154.84515485,0.00027766,2]
[322864767,1713423032238,-153.1729791,0.00027767,2]
[322864874,1713423232724,509.54150604,0.0002,2]
[322864875,1713423254662,154.87609912,0.0002,2]
[322864876,1713423264983,154.87609912,0.0002,2]
[322864877,1713423272662,221.7023888,0.0002,2]
[322864878,1713423279221,7429.60518659,0.00021,2]
[322864880,1713423280987,154.87609912,0.0002,2]
[322864882,1713423284768,154.87609912,0.00020999,2]
[322864883,1713423298987,267.56957644,0.0002,2]
[322864898,1713423316380,1767.236261,0.00020478,2]
[322864900,1713423326052,1992.76598,0.00020454,2]
[322864901,1713423373375,10104.69197443,0.00020454,2]
[322864902,1713423387308,10104.69197443,0.00020454,2]
[322864903,1713423405138,9049.49288347,0.00020454,2]
[322864923,1713423444124,200.0,0.0002049,2]
[322864924,1713423466550,167.122473,0.00019963,2]
[322864925,1713423476792,-205.8725987,0.00021011,2]
[322864926,1713423476819,-454.53731742,0.00021011,2]
[322864927,1713423476895,-13.47775339,0.00021011,2]
[322864929,1713423481963,-154.86062544,0.0002101,2]
[322864930,1713423481989,-151.36196519,0.0002101,2]
[322864931,1713423482063,-6.24944062,0.0002101,2]
[322864932,1713423482480,-515.33574636,0.00021011,2]
[322864933,1713423482607,-10.51705605,0.00021011,2]
[322864934,1713423482633,-504.81869031,0.00021011,2]
[322864935,1713423482717,-422.01539141,0.00021011,2]
[322864936,1713423483958,496.58872361,0.00021011,2]
[322864937,1713423483984,162.95128572,0.00021011,2]
[322864938,1713423484451,203.96802246,0.00021011,2]
[322864939,1713423486997,-474.3197252,0.0002101,2]
[322864940,1713423487024,-142.27701843,0.00021011,2]
[322864941,1713423487101,-12.58360701,0.00021011,2]
[322864942,1713423490130,-2083.67045213,0.0002101,2]
[322864943,1713423490233,-42.52388678,0.0002101,2]
[322864944,1713423491678,-233.22182325,0.00021011,2]
[322864945,1713423491779,-4.75962905,0.00021011,2]
[322864946,1713423493790,228.4621942,0.00021011,2]
[322864947,1713423493819,233.22182325,0.00021011,2]
[322864948,1713423494035,-227.07977341,0.00021011,2]
[322864949,1713423494234,224.01579132,0.00021011,5]
[322864950,1713423494261,451.09556473,0.00021011,5]
[322864951,1713423494298,-92.14806246,0.00021011,5]
[322864952,1713423496063,130.39011548,0.00021011,2]
[322864953,1713423496092,141.94435978,0.00021011,2]
[322864954,1713423496830,-5482.66204168,0.00021011,2]
[322864955,1713423496928,-111.89106207,0.00021011,2]
[322864956,1713423498273,2585.4644162,0.00021011,2]
[322864957,1713423501649,-154.86062544,0.00021011,2]
[322864958,1713423501676,-148.66620042,0.00021011,2]
[322864959,1713423501762,-6.19442502,0.00021011,2]
[322864960,1713423502371,297.33240084,0.00021011,2]
[322864961,1713423502399,64.35283802,0.00021011,2]
[322864962,1713423503770,239.17398784,0.00021011,2]
[322864963,1713423504046,-356.30418176,0.00021011,2]
[322864964,1713423504153,-7.27151391,0.00021011,2]
[322864965,1713423508220,593.59974677,0.00019994,2]
[322864966,1713423511490,-156.87718177,0.00021011,2]
[322864967,1713423511518,-916.2052137,0.00021011,2]
[322864968,1713423511627,-21.89964072,0.00021011,2]
[322864969,1713423512089,623.20342483,0.00021011,2]
[322864970,1713423515075,-1284.24205909,0.00021011,2]
[322864971,1713423515184,-26.20902161,0.00021011,2]
[322864972,1713423516003,186.02854111,0.0002101,2]
[322864973,1713423516111,155.41544983,0.00017773,2]
[322864974,1713423520368,-189.00549416,0.00021011,2]
[322864975,1713423520397,-343.59392699,0.00021011,2]
[322864976,1713423520469,-10.86937594,0.00021011,2]
[322864977,1713423534060,-1838.75359712,0.00021011,2]
[322864978,1713423534185,-37.52558361,0.00021011,2]
[322864979,1713423550721,-205.8725987,0.00021011,2]
[322864980,1713423550747,-642.23175717,0.00021011,2]
[322864981,1713423550833,-17.30825216,0.00021011,2]
[322864982,1713423562755,-154.86062544,0.00021011,2]
[322864983,1713423562782,-671.89130253,0.00021011,2]
[322864984,1713423562870,-16.87248833,0.00021011,2]
[322864985,1713423566897,-515.33574636,0.0002101,2]
[322864986,1713423567006,-10.51705605,0.0002101,2]
[322864987,1713423571495,-266.88778575,0.00021009,2]
[322864988,1713423571614,-5.44668951,0.00021009,2]
[322864989,1713423572033,237.9814523,0.00021009,2]
[322864990,1713423590433,1526.4732867,0.00020651,2]
[322864992,1713423591636,-938.10485442,0.00021028,2]
[322864993,1713423591658,-154.86062544,0.00021028,2]
[322864994,1713423591680,-213.03452014,0.00021029,2]
[322864998,1713423607160,-3001.99020719,0.00021009,2]
[322864999,1713423607273,-61.26510627,0.00021009,2]
[322865000,1713423627216,-692.49149871,0.00021009,2]
[322865001,1713423627299,-14.13247957,0.00021009,2]
[322865002,1713423656293,35583.5444806,0.00020452,2]
[322865005,1713423742784,-464.8333307,0.00021011,2]
[322865006,1713423742905,-9.4863945,0.00021011,2]
[322865007,1713423749014,-156.87718177,0.00021011,2]
[322865008,1713423749041,-198.61760309,0.00021011,2]
[322865009,1713423749128,-7.25499561,0.00021011,2]
[322865010,1713423750232,348.23978925,0.00021011,2]
[322865011,1713423750394,-177.61301316,0.00021011,2]
[322865012,1713423752010,337.7227332,0.00021011,2]
[322865013,1713423752036,321.81727613,0.00021011,2]
[322865014,1713423772913,-189.00549416,0.00021011,2]
[322865015,1713423772940,-3729.70206917,0.00021011,2]
[322865016,1713423772965,-188.51363449,0.00021011,2]
[322865017,1713423773008,-83.82084077,0.00021011,2]
[322865018,1713423773621,1876.27918073,0.00021011,2]
[322865019,1713423788560,-2533.75512788,0.00021011,2]
[322865020,1713423788663,-51.70928832,0.00021011,2]
[322865021,1713423789538,539.33485358,0.00021011,2]
[322865022,1713423795486,-458.65476939,0.00021011,2]
[322865023,1713423795578,-9.36030142,0.00021011,2]
[322865024,1713423796815,449.29446797,0.00021011,2]
[322865025,1713423796842,239.46932289,0.00021011,2]
[322865026,1713423802771,-510.69346678,0.00021011,2]
[322865027,1713423802904,-10.42231565,0.00021011,2]
[322865028,1713423812841,739.8331584,0.00020754,2]
[322865029,1713423837523,-3045.92335649,0.00021011,2]
[322865030,1713423837552,883.61813,0.00020794,2]
[322865031,1713423837627,-62.16170115,0.00021011,2]
[322865032,1713423850341,-1838.75359712,0.00021011,2]
[322865033,1713423850418,-37.52558361,0.00021011,2]
[322865034,1713423873767,-2055.51254385,0.00021011,2]
[322865035,1713423873878,-41.94923559,0.00021011,2]
[322865036,1713423909820,-3045.92335649,0.00021011,2]
[322865037,1713423909924,-62.16170115,0.00021011,2]
[322865038,1713423917350,200.0,0.00020961,2]
[322865039,1713423947877,4552.04097209,0.00018911,2]
[322865040,1713423956248,-2055.51254385,0.00021011,2]
[322865041,1713423956379,-41.94923559,0.00021011,2]
[322865042,1713423982286,-1586.92606873,0.00021011,2]
[322865043,1713423982382,-32.3862463,0.00021011,2]
[322865046,1713424036755,-2055.51254385,0.00021011,2]
[322865047,1713424036822,-41.94923559,0.00021011,2]
[322865048,1713424046930,-1586.92606873,0.00021011,2]
[322865049,1713424047008,-32.3862463,0.00021011,2]
[322865050,1713424110784,198.32439914,0.00020969,2]
[322865051,1713424127534,-1586.92606873,0.00021011,2]
[322865052,1713424127642,-32.3862463,0.00021011,2]
[322865053,1713424201979,-1586.92606873,0.00021011,2]
[322865054,1713424202130,-32.3862463,0.00021011,2]
[322865074,1713424232233,-926.83408172,0.00021012,2]
[322865075,1713424232242,-524.03920054,0.00021212,4]
[322865076,1713424232252,-611.9790479,0.00021918,2]
[322865077,1713424232261,-158.89146937,0.00022,2]
[322865078,1713424232270,-109.24838707,0.00022205,2]
[322865079,1713424232286,-190.75161293,0.00022205,2]
[322865080,1713424232295,-300.0,0.00022205,2]
[322865081,1713424232304,-5795.73951,0.00022206,2]
[322865082,1713424232313,-277.67829471,0.00022206,2]
[322865083,1713424232322,-154.87609912,0.00022216,2]
[322865085,1713424232331,-174.92124715,0.00022216,2]
[322865086,1713424232341,-219.69325897,0.00022216,2]
[322865087,1713424232350,-750.64534362,0.00022216,2]
[322865088,1713424232359,-333.35134093,0.00022216,2]
[322865107,1713424238234,-817.67743584,0.00022116,2]
[322865108,1713424238244,-17.90207772,0.00022216,2]
[322865109,1713424238253,-335.19690112,0.00022216,2]
[322865110,1713424238263,-186.00713775,0.00022216,2]
[322865111,1713424238272,-298.47776339,0.00022216,2]
[322865112,1713424238282,-222.092106,0.00022216,2]
[322865114,1713424238291,-288.69352646,0.00022216,2]
[322865115,1713424238300,-231.02977261,0.00022216,2]
[322865117,1713424238310,-169.3863296,0.00022216,2]
[322865118,1713424238319,-937.47150318,0.00022216,2]
[322865119,1713424238328,-299.86368944,0.00022216,2]
[322865120,1713424238338,-157.38434403,0.00022216,2]
[322865121,1713424238351,-205.79685127,0.00022216,2]
[322865122,1713424238361,-162.74120678,0.00022216,2]
[322865123,1713424238371,-183.76248891,0.00022216,2]
[322865124,1713424238380,-266.83469092,0.00022216,2]
[322865125,1713424238390,-106.64877784,0.00022216,2]
[322865129,1713424238436,-165.63062482,0.00022216,2]
[322865131,1713424238445,-161.97168551,0.00022216,2]
[322865133,1713424238454,-283.14768967,0.00022216,2]
[322865199,1713424249013,3034.69398139,0.00018928,2]
[322865201,1713424550560,2023.12932093,0.00020106,2]
[322865202,1713424793078,10000.0,0.000268,120]
[322865241,1713425375274,172.82220696,0.00021,2]
[322865277,1713425433767,167.122473,0.00020942,2]
[322865324,1713425441635,-1619.31231503,0.00021068,2]
[322865325,1713425441645,-926.83408172,0.00021069,2]
[322865326,1713425441654,-800.46893045,0.0002107,2]
[322865327,1713425441663,-441.809065,0.00021216,2]
[322865328,1713425441672,-158.89146937,0.00022214,2]
[322865329,1713425441681,-300.0,0.00022215,2]
[322865330,1713425441690,-300.0,0.00022215,2]
[322865331,1713425441700,-307.69952397,0.00022216,2]
[322865332,1713425441708,-470.42181749,0.00022216,2]
[322865333,1713425441717,-691.33912406,0.00022216,2]
[322865334,1713425441726,-157.7837145,0.00022216,2]
[322865335,1713425441736,-281.67851016,0.00022216,2]
[322865336,1713425441746,-852.9511326,0.00022216,2]
[322865337,1713425441755,-155.14988899,0.00022216,2]
[322865338,1713425441764,-999.56615412,0.00022217,2]
[322865339,1713425441773,-155.18417527,0.00022217,2]
[322865340,1713425441783,-43099.34952945,0.00022218,2]
[322865341,1713425441792,-757.37339461,0.000229,2]
[322865342,1713425441801,-243.31260589,0.00023,2]
[322865343,1713425441810,-558.36779608,0.00023502,2]
[322865344,1713425441821,-500.0,0.000236,2]
[322865345,1713425441830,-500.0,0.000236,2]
[322865347,1713425441839,-383.8795427,0.000236,2]
[322865349,1713425441848,-43632.24809631,0.00023601,2]
[322865884,1713427418629,2579.35149625,0.0002,2]
[322865886,1713427444041,1398.75288062,0.000189,2]
[322865897,1713427726412,-1067.67988334,0.00021011,2]
[322865898,1713427726510,-21.78938537,0.00021011,2]
[322865899,1713427732372,-1586.92606873,0.00021011,2]
[322865900,1713427732526,-32.3862463,0.00021011,2]
[322865901,1713427734798,-2055.51254385,0.00021011,2]
[322865902,1713427734909,-41.94923559,0.00021011,2]
[322865903,1713427735156,154.84515485,0.00021011,2]
[322865904,1713427738532,-1459.1606067,0.00021011,2]
[322865905,1713427738640,-29.77878789,0.00021011,2]
[322865906,1713427740686,300.0,0.00021011,2]
[322865907,1713427741908,-294.0,0.00021011,2]
[322865909,1713427742157,-6.0,0.00021011,2]
[322865911,1713427746606,932.50192041,0.00018911,2]
[322865920,1713427780556,627.4925571,0.00018911,2]
[322865921,1713427781795,-1544.35966311,0.00021011,2]
[322865922,1713427781890,-31.51754414,0.00021011,2]
[322865923,1713427793094,-461.76690266,0.00021011,2]
[322865924,1713427793191,-9.42381434,0.00021011,2]
[322865925,1713427797515,-458.65476939,0.00021011,2]
[322865926,1713427797619,-9.36030142,0.00021011,2]
[322865927,1713427800484,-552.70372345,0.00021011,2]
[322865928,1713427800585,-11.27966783,0.00021011,2]
[322865929,1713427811549,-241.27133125,0.0002101,2]
[322865930,1713427811576,-149.63375107,0.00021011,2]
[322865931,1713427811655,-7.97765474,0.00021011,2]
[322865932,1713427816542,-908.29740009,0.0002101,2]
[322865933,1713427816588,-18.53668163,0.0002101,2]
[322866235,1713427904457,-154.84515485,0.00021009,2]
[322866236,1713427904483,-148.65134866,0.0002101,2]
[322866237,1713427904565,-6.19380619,0.0002101,2]
[322866241,1713428047833,786.82482189,0.00018911,2]
[322866242,1713428066007,-154.84515485,0.00021009,2]
[322866243,1713428066045,-148.8788352,0.0002101,2]
[322866244,1713428066107,-6.19844878,0.0002101,2]
[322866246,1713428348985,524.54988126,0.00018911,2]
[322866255,1713428627202,-908.29740009,0.00021012,2]
[322866256,1713428627258,-18.53668163,0.00021012,2]
[322866257,1713428650278,349.69992084,0.00018912,2]
[322866261,1713428863323,390.89970679,0.00020913,2]
[322866262,1713428951687,233.13328056,0.00018912,2]
[322866289,1713429038008,-1619.31231503,0.00021013,2]
[322866290,1713429038017,-167.122473,0.00021031,2]
[322866291,1713429038026,-1126.85514116,0.0002123,2]
[322866550,1713429252892,155.42218704,0.0001913,2]
[322866553,1713429276945,10000.0,0.000268,120]
[322866555,1713429294431,7777.0,0.000268,120]
[322866558,1713429422381,420.0870078,0.000203,2]
[322866559,1713429442553,-272.12472882,0.00021011,2]
[322866560,1713429442667,-5.55356589,0.00021011,2]
[322866561,1713429447019,-272.12472882,0.00021011,2]
[322866562,1713429447131,-5.55356589,0.00021011,2]
[322866563,1713429481135,-1586.92606873,0.00021011,2]
[322866564,1713429481225,-32.3862463,0.00021011,2]
[322866565,1713429533028,346.846637,0.00020292,2]
[322866566,1713429542952,-221.94398712,0.00021011,2]
[322866567,1713429543158,-4.52946912,0.00021011,2]
[322866568,1713429594104,-272.12472882,0.00021011,2]
[322866569,1713429594213,-5.55356589,0.00021011,2]
[322866602,1713429613793,-513.55841653,0.00021011,4]
[322866603,1713429613905,-10.48078401,0.00021011,4]
[322866695,1713429720685,5313.0,0.000261,89]
[322866729,1713429801581,-1586.92606873,0.00021011,2]
[322866730,1713429801692,-32.3862463,0.00021011,2]
[322866735,1713429850739,168.923582,0.00020021,2]
[322866741,1713429946284,11820.14,0.0002,2]
[322866742,1713429952216,672.86942406,0.00019999,2]
[322866749,1713430143613,173.423318,0.00020288,2]
[322866793,1713430232286,-672.86942406,0.00021016,2]
[322866794,1713430232295,-158.0054865,0.00021017,2]
[322866795,1713430232304,-354.20583828,0.00021129,2]
[322867170,1713430361958,164.4286999,0.00020034,2]
[322867173,1713430432047,811.56689381,0.0002,2]
[322867175,1713430459613,14760.18936932,0.0002,2]
[322867184,1713430739628,173.423318,0.00020338,2]
[322867188,1713430749268,259.0,0.00021,2]
[322867190,1713430758995,319.6122003,0.000189,2]
[322867191,1713430812833,638.52519702,0.0002041,2]
[322867194,1713430902185,188.66201149,0.00020917,2]
[322867195,1713431035342,1001.586012,0.000207,2]
[322867196,1713431060164,213.0748002,0.000189,2]
[322867200,1713431361454,150.0,0.000189,2]
[322867299,1713431438482,-158.00548651,0.00021017,2]
[322867301,1713431438491,-1989.72906935,0.00021027,2]
[322867303,1713431440522,-107.73271009,0.00021027,2]
[322867304,1713431440532,-1128.32781727,0.00021028,2]
[322867314,1713431443658,-262.727025,0.00021028,2]
[322867315,1713431443667,-950.0,0.000212,2]
[322867316,1713431443676,-150.055941,0.000212,2]
[322867317,1713431443685,-1000.0,0.000212,2]
[322867318,1713431443695,-300.0,0.00021224,2]
[322867319,1713431443704,-300.0,0.00021225,2]
[322867320,1713431443713,-2346.099491,0.00021225,2]
[322867321,1713431443722,-2346.099491,0.00021225,2]
[322867322,1713431443731,-845.37275653,0.00021229,2]
[322867323,1713431443740,-151.0,0.00021229,2]
[322867324,1713431443749,-2346.099491,0.00021229,2]
[322867325,1713431443758,-2346.099491,0.00021229,2]
[322867326,1713431443768,-3893.37073142,0.0002123,2]
[322867327,1713431443778,-151.0,0.0002123,2]
[322867328,1713431443787,-151.0,0.0002123,2]
[322867329,1713431443797,-151.0,0.0002123,2]
[322867330,1713431443806,-151.0,0.0002123,2]
[322867331,1713431443815,-202.882444,0.0002123,2]
[322867332,1713431443825,-151.0,0.0002123,2]
[322867333,1713431443834,-163.391766,0.0002123,2]
[322867334,1713431443843,-320.82550892,0.0002123,2]
[322867342,1713431662867,150.0,0.0001913,2]
[322867349,1713432004484,168.923582,0.00019986,2]
[322867353,1713432161589,154.86062544,0.00019986,2]
[322867354,1713432162868,3670.40310639,0.00019986,10]
[322867355,1713432163428,154.86062544,0.00019986,2]
[322867356,1713432165505,155.25507585,0.00017111,2]
[322867357,1713432173511,255.90806058,0.0001925,2]
[322867358,1713432179397,156.14308152,0.00019986,2]
[322867359,1713432180003,1898.19,0.00021,2]
[322867360,1713432180942,2802.97366498,0.00019986,10]
[322867361,1713432186231,154.86062544,0.00019986,2]
[322867362,1713432186259,16076.25580417,0.00019986,2]
[322867363,1713432187796,14722.3627025,0.00020244,2]
[322867364,1713432193068,10000.0,0.00025,30]
[322867365,1713432198671,12276.18884645,0.00019986,2]
[322867366,1713432203551,154.86062544,0.00019986,2]
[322867367,1713432225549,154.86062544,0.00019986,2]
[322867368,1713432233777,10000.0,0.00021,2]
[322867369,1713432246263,162.78857378,0.00019986,2]
[322867372,1713432521945,503.768418,0.00020244,2]
[322867373,1713432610167,-307.67701338,0.00021389,7]
[322867374,1713432616773,-527.79418229,0.00021392,4]
[322867479,1713432643854,-158.00548651,0.00021017,2]
[322867480,1713432643863,-224.21374262,0.0002113,2]
[322867481,1713432643873,-1876.27918073,0.00021199,2]
[322867482,1713432643882,-950.0,0.000212,2]
[322867483,1713432643891,-300.0,0.00021227,2]
[322867484,1713432643900,-300.0,0.00021227,2]
[322867485,1713432643910,-5330.89962613,0.00021228,2]
[322867486,1713432643921,-6698.39384703,0.00021228,2]
[322867487,1713432643930,-151.0,0.0002123,2]
[322867488,1713432643939,-151.0,0.0002123,2]
[322867489,1713432643949,-151.0,0.0002123,2]
[322867490,1713432643958,-151.0,0.0002123,2]
[322867491,1713432643967,-151.0,0.0002123,2]
[322867492,1713432643976,-151.0,0.0002123,2]
[322867493,1713432643986,-239.64,0.0002123,2]
[322867494,1713432643995,-151.0,0.0002123,2]
[322867495,1713432644003,-151.0,0.0002123,2]
[322867496,1713432644013,-151.0,0.0002123,2]
[322867497,1713432644022,-151.0,0.0002123,2]
[322867498,1713432644031,-151.0,0.0002123,2]
[322867499,1713432644042,-151.0,0.0002123,2]
[322867500,1713432644051,-151.0,0.0002123,2]
[322867501,1713432644060,-260.11431,0.0002123,2]
[322867502,1713432644069,-1860.838317,0.0002123,2]
[322867503,1713432644078,-1860.838317,0.0002123,2]
[322867504,1713432644087,-1860.838317,0.0002123,2]
[322867505,1713432644096,-1860.838317,0.0002123,2]